[Event "3rd Matrix Cup 2024"]
[Site "New Delhi"]
[Date "2024.04.08"]
[Round "5.2"]
[White "Narayan Iyengar"]
[Black "Neelash Saha"]
[Result "0-1"]
[ECO "B12"]
[WhiteElo "1844"]
[BlackElo "2464"]
[Annotator "TA"]
[PlyCount "116"]
[EventDate "2024.04.07"]
[EventType "swiss"]
[EventCountry "IND"]
[SourceTitle "playchess.com"]
[Source "ChessBase"]
[SourceQuality "1"]
[TimeControl "5400+30"]

{[%evp 12,116,36,20,37,9,36,21,51,10,45,14,20,10,17,10,13,21,20,17,22,7,9,0,0,0,0,6,-11,-48,46,52,43,14,19,-12,83,8,107,19,151,161,164,167,150,0,0,0,11,0,0,-25,-14,-30,0,-33,-24,-51,-77,-81,-58,-70,-24,-47,-49,-72,-64,-124,-97,-115,-99,-121,-110,-118,-104,-104,-114,-114,-114,-187,-174,-186,-13,-553,-551,-533,-474,-494,-473,-501,-514,-492,-483,-1124,-1079,-833,-743,-1739,-1487,-1822,-1810,-1758,-1530,-29986,-29987,-29987,-29988]} 1. e4 {[%emt 0:00:05]} c6 {[%emt 0:01:41]} 2. d4 {[%emt 0:00:08]} d5 {[%emt 0:00:03]} 3. e5 {[%emt 0:00:08]} Bf5 {[%emt 0:00:10]} 4. Nf3 {[%emt 0:00:09]} e6 {[%emt 0:00:27]} 5. Be2 {[%emt 0:00:10]} Nd7 {[%emt 0:01:53]} 6. Nbd2 {[%emt 0:00:21]} h6 {[%emt 0:02:26]} 7. O-O {[%emt 0:00:54]} Ne7 {[%emt 0:00:10]} 8. Re1 {[%emt 0:07:19]} Bh7 {[%emt 0:00:35]} 9. Nb3 {[%emt 0:00:44]} Qc7 {[%emt 0:00:47] The position is equal.} 10. Be3 {[%emt 0:01:59]} a6 {[%emt 0:00:46]} 11. Rc1 {[%emt 0:02:11]} b5 {[%emt 0:02:41]} 12. Bd3 {[%emt 0:01:39]} Nf5 {[%emt 0:04:37]} 13. Bd2 {[%emt 0:14:52]} a5 {[%emt 0:00:05]} 14. g4 {[%emt 0:00:48]} Ne7 {[%emt 0:00:04]} 15. Bxh7 {[%emt 0:00:19]} Rxh7 {[%emt 0:00:04]} 16. Be3 {[%emt 0:04:27]} Rh8 {[%emt 0:01:24]} 17. Qd3 {[%emt 0:03:08]} Ng6 {[%emt 0:04:22]} 18. Nbd2 {[%emt 0:01:01]} Qb7 {[%emt 0:09:52]} 19. b3 {[%emt 0:01:31]} Ba3 {[%emt 0:02:35]} 20. Rb1 {[%emt 0:00:48]} O-O-O {[%emt 0:05:05]} (20... h5 $15) 21. c4 {[%emt 0:07:27]} Kb8 {[%emt 0:01:23]} 22. cxb5 {[%emt 0:11:20]} Qxb5 {[%emt 0:00:34]} 23. Nc4 {[%emt 0:00:08][%cal Od3c2]} Bb4 {[%emt 0:00:59]} (23... Ka8 $11) 24. Red1 {[%emt 0:00:12]} (24. Qc2 $1 $16) 24... h5 {[%emt 0:29:20] [#]} (24... Kc7 $11) 25. g5 {[%emt 0:09:19]} h4 {[%emt 0:10:09] [#]} (25... Kc7 $11) 26. a3 $1 $16 {[%emt 0:06:14]} Be7 {[%emt 0:00:10][%cal Ob8c7] [#]} 27. Qc3 $1 {[%emt 0:00:52]} Rc8 {[%emt 0:05:05]} 28. Qxa5 {[%emt 0:07:23]} (28. Nxa5 $16 Qe2 29. Ne1 (29. Nxc6+ Kb7 $11)) 28... Qxa5 $11 {[%emt 0:03:33]} 29. Nxa5 {[%emt 0:00:04]} c5 {[%emt 0:00:04]} 30. b4 {[%emt 0:02:46]} c4 {[%emt 0:03:18]} 31. Ne1 {[%emt 0:09:53]} Kc7 {[%emt 0:02:44][%mdl 1024] Black has compensation.} 32. Rdc1 {[%emt 0:01:18]} Kb6 {[%emt 0:01:34]} 33. Nc2 {[%emt 0:03:39]} h3 {[%emt 0:00:15]} 34. Ne1 {[%emt 0:02:19]} Nh4 {[%emt 0:00:37]} 35. f4 {[%emt 0:00:24]} Nf5 {[%emt 0:00:12]} 36. Kf2 {[%emt 0:00:12]} Ra8 {[%emt 0:01:48]} (36... Nf8 $15 37. Nf3 Ng6) 37. Nf3 {[%emt 0:01:04]} Kb5 {[%emt 0:03:56]} 38. Rc2 {[%emt 0:01:17]} Nb6 {[%emt 0:00:38]} 39. Bc1 {[%emt 0:00:11]} (39. Ke2 $15) 39... Ra7 {[%emt 0:00:08] Active counter play!} 40. Ke2 {[%emt 0:00:47]} Na4 {[%emt 0:00:11]} 41. Bd2 {[%emt 0:00:19]} Bd8 {[%emt 0:00:15]} 42. Be1 {[%emt 0:00:12]} Bb6 {[%emt 0:00:23]} 43. Bf2 {[%emt 0:00:05]} Rc7 {[%emt 0:00:12]} 44. Kd2 {[%emt 0:00:35]} g6 {[%emt 0:00:14]} 45. Ke2 {[%emt 0:00:21] [#]} (45. Rcc1 $17) 45... Rb8 $1 $19 {[%emt 0:00:18]} 46. Kd2 {[%emt 0:00:54]} Ka6 $2 {[%emt 0:00:07]} (46... Rcc8 $1 $19 47. Ke2 Bd8) 47. Rcc1 $2 {[%emt 0:00:24][%mdl 8192]} (47. Nc6 $1 $11) 47... Bxa5 {[%emt 0:00:51]} 48. bxa5 {[%emt 0:00:08]} Rcb7 {[%emt 0:00:02]} 49. Rxb7 {[%emt 0:00:40]} Rxb7 {[%emt 0:00:05]} ({Weaker is} 49... Kxb7 50. Rb1+ Ka7 51. Rxb8 Kxb8 52. Kc2 $11) 50. Ne1 {[%emt 0:00:31]} Rb3 {[%emt 0:00:30]} 51. Nc2 {[%emt 0:01:31]} Kxa5 {[%emt 0:00:07]} 52. Ke2 {[%emt 0:00:20]} (52. Ne1 $142) 52... Nc3+ {[%emt 0:00:18]} 53. Kf1 {[%emt 0:00:14]} Ne4 {[%emt 0:00:45] ( -> ...Rf3). A dynamic duo of knights.} 54. Be1+ {[%emt 0:00:06]} Ka4 {[%emt 0:00:13]} 55. Ke2 {[%emt 0:00:16]} Rb2 {[%emt 0:00:11]} 56. Kd1 {[%emt 0:00:13]} c3 {[%emt 0:00:24]} 57. Ra1 {[%emt 0:00:53]} Kb3 {[%emt 0:00:13]} 58. Rc1 {[%emt 0:00:24] [#]} Rxc2 $1 {[%emt 0:00:15][%mdl 512] What a bad dream for White.   Weighted Error Value: White=0.58/Black=0.24 (precise) .  Loses game:     	White=1     	---        Missed win:     	---       	Black=1      Mistake:       	White=6     	Black=5      Inaccurate:     	White=8     	Black=4      OK:         	White=9     	Black=17     Best:        	White=1     	Black=1      Strong:       	White=1     	Black=1} 0-1

[Event "3rd Matrix Cup 2024"]
[Site "New Delhi"]
[Date "2024.04.08"]
[Round "5.3"]
[White "Singh, Arvinder Preet"]
[Black "Nirnay Garg"]
[Result "0-1"]
[ECO "B45"]
[WhiteElo "2064"]
[BlackElo "1828"]
[Annotator "RC"]
[PlyCount "122"]
[EventDate "2024.04.07"]
[EventType "swiss"]
[EventCountry "IND"]
[SourceTitle "playchess.com"]
[Source "ChessBase"]
[SourceQuality "1"]
[TimeControl "5400+30"]

1. e4 {[%emt 0:00:03]} c5 {[%emt 0:00:34]} 2. Nf3 {[%emt 0:00:26]} e6 {[%emt 0:00:06]} 3. d4 {[%emt 0:00:10]} cxd4 {[%emt 0:00:21]} 4. Nxd4 {[%emt 0:00:02]} Nf6 {[%emt 0:00:07]} 5. Nc3 {[%emt 0:00:26]} Nc6 {[%emt 0:00:07]} 6. g3 {[%emt 0:04:11]} d5 {[%emt 0:04:41]} 7. Bg2 {[%emt 0:19:49]} Qb6 {[%emt 0:05:48]} 8. Nb3 {[%emt 0:15:19]} d4 {[%emt 0:06:46]} 9. e5 {[%emt 0:05:12]} Nd7 {[%emt 0:04:20]} 10. Ne2 {[%emt 0:00:11]} Bb4+ {[%emt 0:04:26]} 11. c3 {[%emt 0:01:18]} dxc3 {[%emt 0:02:06]} 12. bxc3 {[%emt 0:00:05]} Be7 {[%emt 0:03:38]} 13. Be3 {[%emt 0:00:08]} Qc7 {[%emt 0:03:21]} 14. f4 {[%emt 0:00:05]} O-O {[%emt 0:01:51]} 15. O-O {[%emt 0:00:18]} Nb6 {[%emt 0:01:42]} 16. Ned4 {[%emt 0:12:57]} Nc4 {[%emt 0:07:16]} 17. Bf2 {[%emt 0:06:12]} Bd7 {[%emt 0:11:34]} 18. Nb5 {[%emt 0:00:35]} Qc8 {[%emt 0:05:52]} 19. Qe2 {[%emt 0:01:34]} N6a5 {[%emt 0:11:46]} 20. Nxa7 {[%emt 0:05:49]} Qc7 {[%emt 0:01:52]} 21. Nxa5 {[%emt 0:00:30]} Nxa5 {[%emt 0:01:21]} 22. Nb5 {[%emt 0:00:35]} Bxb5 {[%emt 0:01:36]} 23. Qxb5 {[%emt 0:00:05]} Qxc3 {[%emt 0:00:09]} 24. Rfc1 {[%emt 0:02:53]} Qd2 {[%emt 0:03:08]} 25. Rd1 {[%emt 0:03:05]} Qc2 {[%emt 0:01:19]} 26. Rdc1 {[%emt 0:05:38]} Qd2 {[%emt 0:00:41]} 27. Kh1 {[%emt 0:05:02]} Qxf2 {[%emt 0:00:26]} 28. Rc7 {[%emt 0:01:08]} Ba3 {[%emt 0:02:26]} 29. f5 {[%emt 0:02:43]} Qb2 {[%emt 0:01:31]} 30. Rb1 {[%emt 0:02:16]} Qxb5 {[%emt 0:04:43]} 31. Rxb5 {[%emt 0:00:02]} exf5 {[%emt 0:00:42]} 32. Bd5 {[%emt 0:00:28]} Nc6 {[%emt 0:01:01]} 33. e6 {[%emt 0:03:30]} fxe6 {[%emt 0:02:54]} 34. Bxc6 {[%emt 0:00:48]} bxc6 {[%emt 0:01:56]} 35. Rbb7 {[%emt 0:00:01]} Rfb8 {[%emt 0:02:37]} 36. Rxg7+ {[%emt 0:00:28]} Kf8 {[%emt 0:00:09]} 37. Rbf7+ {[%emt 0:00:15]} Ke8 {[%emt 0:00:00]} 38. Rf6 {[%emt 0:00:55]} Rb1+ {[%emt 0:02:36]} 39. Kg2 {[%emt 0:00:01]} Rb2+ {[%emt 0:00:27]} 40. Kh3 {[%emt 0:00:07]} Bf8 {[%emt 0:01:50]} 41. Rxe6+ {[%emt 0:01:14]} Kd8 {[%emt 0:00:01]} 42. Rf7 {[%emt 0:00:41]} Raxa2 {[%emt 0:00:08]} 43. Rxf5 {[%emt 0:01:36]} Rxh2+ {[%emt 0:00:14]} 44. Kg4 {[%emt 0:00:02]} Kd7 {[%emt 0:00:59]} 45. Re4 {[%emt 0:00:42]} Be7 {[%emt 0:00:27]} 46. Rf3 {[%emt 0:01:23]} h5+ {[%emt 0:01:11]} 47. Kf5 {[%emt 0:00:06]} Raf2 {[%emt 0:00:17]} 48. Rd4+ {[%emt 0:01:29]} Bd6 {[%emt 0:00:03]} 49. Rxf2 {[%emt 0:01:38]} Rxf2+ {[%emt 0:00:02]} 50. Kg5 {[%emt 0:00:16]} Rg2 {[%emt 0:00:14]} 51. Kxh5 {[%emt 0:00:59]} Rxg3 {[%emt 0:00:02]} 52. Kh4 {[%emt 0:00:24]} Rg8 {[%emt 0:00:10]} 53. Kh3 {[%emt 0:00:37]} c5 {[%emt 0:00:06]} 54. Rd1 {[%emt 0:00:31]} Kc6 {[%emt 0:00:06]} 55. Rc1 {[%emt 0:00:26]} Be5 {[%emt 0:00:06]} 56. Re1 {[%emt 0:00:27]} Bd4 {[%emt 0:00:01]} 57. Kh2 {[%emt 0:00:34]} c4 {[%emt 0:00:06]} 58. Re4 {[%emt 0:00:34]} Kd5 {[%emt 0:00:04]} 59. Re7 {[%emt 0:00:15]} c3 {[%emt 0:00:06]} 60. Rc7 {[%emt 0:00:01]} Be5+ {[%emt 0:00:11]} 61. Kh1 {[%emt 0:00:01]} Rh8+ {[%emt 0:00:07]} 0-1

[Event "3rd Matrix Cup 2024"]
[Site "New Delhi"]
[Date "2024.04.08"]
[Round "5.4"]
[White "Daksh Goyal"]
[Black "Siddhant Nath Jha"]
[Result "0-1"]
[ECO "B43"]
[WhiteElo "1916"]
[BlackElo "1704"]
[Annotator "RC"]
[PlyCount "178"]
[EventDate "2024.04.07"]
[EventType "swiss"]
[EventCountry "IND"]
[SourceTitle "playchess.com"]
[Source "ChessBase"]
[SourceQuality "1"]
[TimeControl "5400+30"]

1. e4 {[%emt 0:02:28]} c5 {[%emt 0:00:06]} 2. Nf3 {[%emt 0:00:03]} e6 {[%emt 0:00:04]} 3. d4 {[%emt 0:00:06]} cxd4 {[%emt 0:00:03]} 4. Nxd4 {[%emt 0:00:03]} a6 {[%emt 0:00:05]} 5. Nc3 {[%emt 0:00:05]} b5 {[%emt 0:00:17]} 6. Bd3 {[%emt 0:00:02]} Bb7 {[%emt 0:00:36]} 7. O-O {[%emt 0:00:06]} Nc6 {[%emt 0:00:17]} 8. Nxc6 {[%emt 0:00:02]} Bxc6 {[%emt 0:00:02]} 9. Re1 {[%emt 0:00:01]} Bc5 {[%emt 0:09:59]} 10. Qh5 {[%emt 0:00:02]} Qb6 {[%emt 0:03:59]} 11. Be3 {[%emt 0:04:25]} Bxe3 {[%emt 0:03:54]} 12. Rxe3 {[%emt 0:00:02]} Ne7 {[%emt 0:05:44]} 13. Nd5 {[%emt 0:16:56]} Bxd5 {[%emt 0:12:45]} 14. exd5 {[%emt 0:00:57]} g6 {[%emt 0:07:14]} 15. Qg5 {[%emt 0:09:12]} Qc5 {[%emt 0:02:23]} 16. Qe5 {[%emt 0:04:01]} f6 {[%emt 0:17:08]} 17. Qxf6 {[%emt 0:00:01]} Rf8 {[%emt 0:00:01]} 18. Qe5 {[%emt 0:00:01]} Nxd5 {[%emt 0:05:59]} 19. Be4 {[%emt 0:03:47]} Rxf2 {[%emt 0:00:09]} 20. Bxd5 {[%emt 0:00:33]} Rf5 {[%emt 0:00:07]} 21. Qh8+ {[%emt 0:06:41]} Rf8 {[%emt 0:02:19]} 22. Qe5 {[%emt 0:01:04]} Rf5 {[%emt 0:00:06]} 23. Qh8+ {[%emt 0:02:31]} Rf8 {[%emt 0:00:07]} 24. Qc3 {[%emt 0:02:43]} Qxd5 {[%emt 0:00:13]} 25. Rd3 {[%emt 0:00:44]} Qc4 {[%emt 0:06:27]} 26. Qg7 {[%emt 0:00:23]} Qc5+ {[%emt 0:00:14]} 27. Kh1 {[%emt 0:00:04]} Rf7 {[%emt 0:00:45]} 28. Qh8+ {[%emt 0:05:11]} Qf8 {[%emt 0:00:06]} 29. Qxf8+ {[%emt 0:00:07]} Kxf8 {[%emt 0:00:42]} 30. a4 {[%emt 0:01:26]} bxa4 {[%emt 0:01:22]} 31. Kg1 {[%emt 0:01:03]} Rb8 {[%emt 0:00:41]} 32. Ra2 {[%emt 0:00:02]} Ke7 {[%emt 0:00:39]} 33. g3 {[%emt 0:04:50]} Rbf8 {[%emt 0:01:48]} 34. Rd2 {[%emt 0:00:20]} Rf1+ {[%emt 0:03:36]} 35. Kg2 {[%emt 0:00:02]} Rb1 {[%emt 0:00:29]} 36. Rxa4 {[%emt 0:00:40]} Rxb2 {[%emt 0:00:04]} 37. Rxa6 {[%emt 0:00:03]} Rc8 {[%emt 0:00:50]} 38. Ra7 {[%emt 0:00:02]} Rcxc2 {[%emt 0:00:35]} 39. Raxd7+ {[%emt 0:00:18]} Kf6 {[%emt 0:00:07]} 40. Rxc2 {[%emt 0:00:10]} Rxc2+ {[%emt 0:00:04]} 41. Kg1 {[%emt 0:00:57]} h5 {[%emt 0:00:17]} 42. Rd4 {[%emt 0:03:13]} e5 {[%emt 0:02:13]} 43. Rb4 {[%emt 0:00:56]} Kf5 {[%emt 0:00:35]} 44. h3 {[%emt 0:00:37]} Rd2 {[%emt 0:02:01]} 45. Kf1 {[%emt 0:06:23]} Rh2 {[%emt 0:00:43]} 46. Kg1 {[%emt 0:00:39]} Rd2 {[%emt 0:00:27]} 47. Kf1 {[%emt 0:00:05]} Rd4 {[%emt 0:00:40]} 48. Rb6 {[%emt 0:00:16]} g5 {[%emt 0:00:43]} 49. Ke2 {[%emt 0:04:42]} h4 {[%emt 0:00:58]} 50. gxh4 {[%emt 0:00:37]} Rxh4 {[%emt 0:00:13]} 51. Rb3 {[%emt 0:00:04]} Kf4 {[%emt 0:00:34]} 52. Rf3+ {[%emt 0:00:54]} Ke4 {[%emt 0:00:31]} 53. Rg3 {[%emt 0:01:03]} Kf5 {[%emt 0:00:21]} 54. Rb3 {[%emt 0:00:41]} e4 {[%emt 0:00:18]} 55. Kf2 {[%emt 0:09:06]} Kf4 {[%emt 0:00:28]} 56. Kg2 {[%emt 0:06:42]} Rh8 {[%emt 0:00:12]} 57. Rb7 {[%emt 0:00:36]} Rd8 {[%emt 0:03:51]} 58. Rf7+ {[%emt 0:00:13]} Ke3 {[%emt 0:00:11]} 59. Rf5 {[%emt 0:00:12]} Kd2 {[%emt 0:02:45]} 60. Rf2+ {[%emt 0:05:14]} Kc3 {[%emt 0:03:08]} 61. Rf5 {[%emt 0:00:53]} e3 {[%emt 0:03:01]} 62. Ra5 {[%emt 0:04:51]} Kd2 {[%emt 0:02:50]} 63. Ra2+ {[%emt 0:00:09]} Kd3 {[%emt 0:00:33]} 64. Kf1 {[%emt 0:01:14]} Rb8 {[%emt 0:00:22]} 65. Ra3+ {[%emt 0:00:32]} Ke4 {[%emt 0:00:07]} 66. Ra5 {[%emt 0:00:51]} Kf4 {[%emt 0:00:18]} 67. Rc5 {[%emt 0:00:25]} Rb1+ {[%emt 0:00:19]} 68. Ke2 {[%emt 0:00:07]} Rb2+ {[%emt 0:00:12]} 69. Kf1 {[%emt 0:00:47]} Rh2 {[%emt 0:00:13]} 70. Rc8 {[%emt 0:00:33]} Rxh3 {[%emt 0:00:30]} 71. Rf8+ {[%emt 0:00:31]} Kg3 {[%emt 0:02:15]} 72. Ke2 {[%emt 0:00:36]} Kg2 {[%emt 0:00:24]} 73. Rg8 {[%emt 0:00:28]} Rg3 {[%emt 0:00:06]} 74. Rg6 {[%emt 0:00:20]} g4 {[%emt 0:00:09]} 75. Rg5 {[%emt 0:00:30]} Kh2 {[%emt 0:00:58]} 76. Rh5+ {[%emt 0:00:24]} Rh3 {[%emt 0:00:29]} 77. Rg5 {[%emt 0:00:44]} Kg3 {[%emt 0:00:07]} 78. Rg8 {[%emt 0:00:05]} Rh7 {[%emt 0:00:51]} 79. Rg6 {[%emt 0:00:37]} Re7 {[%emt 0:00:24]} 80. Rg8 {[%emt 0:00:25]} Kh3 {[%emt 0:00:11]} 81. Rg6 {[%emt 0:00:59]} Re4 {[%emt 0:00:42]} 82. Rg8 {[%emt 0:00:30]} Kg2 {[%emt 0:00:24]} 83. Rh8 {[%emt 0:00:31]} g3 {[%emt 0:00:16]} 84. Rg8 {[%emt 0:00:29]} Re7 {[%emt 0:00:26]} 85. Rg6 {[%emt 0:00:10]} Kh2 {[%emt 0:03:38]} 86. Rg8 {[%emt 0:00:51]} g2 {[%emt 0:00:00]} 87. Rh8+ {[%emt 0:00:18]} Kg1 {[%emt 0:00:00]} 88. Rb8 {[%emt 0:00:24]} Rh7 {[%emt 0:00:00]} 89. Kxe3 {[%emt 0:00:46]} Kh1 {[%emt 0:00:00]} 0-1

[Event "3rd Matrix Cup 2024"]
[Site "New Delhi"]
[Date "2024.04.08"]
[Round "5.5"]
[White "Hanya Shah"]
[Black "Mrityunjay Kumar"]
[Result "0-1"]
[ECO "A37"]
[WhiteElo "1666"]
[BlackElo "1900"]
[Annotator "RC"]
[PlyCount "140"]
[EventDate "2024.04.07"]
[EventType "swiss"]
[EventCountry "IND"]
[SourceTitle "playchess.com"]
[Source "ChessBase"]
[SourceQuality "1"]
[TimeControl "5400+30"]

1. c4 {[%emt 0:00:05]} c5 {[%emt 0:04:29]} 2. Nc3 {[%emt 0:00:10]} g6 {[%emt 0:00:05]} 3. g3 {[%emt 0:00:12]} Bg7 {[%emt 0:00:09]} 4. Bg2 {[%emt 0:00:08]} Nc6 {[%emt 0:00:12]} 5. Nf3 {[%emt 0:00:19]} e5 {[%emt 0:00:16]} 6. d3 {[%emt 0:01:53]} Nge7 {[%emt 0:00:34]} 7. e4 {[%emt 0:01:07]} d6 {[%emt 0:00:58]} 8. O-O {[%emt 0:02:43]} O-O {[%emt 0:00:11]} 9. Ne1 {[%emt 0:02:03]} a6 {[%emt 0:04:16]} 10. Nc2 {[%emt 0:06:35]} Rb8 {[%emt 0:00:25]} 11. f4 {[%emt 0:08:16]} exf4 {[%emt 1:24:25]} 12. Bxf4 {[%emt 0:02:25]} b5 {[%emt 0:00:00]} 13. Rb1 {[%emt 0:10:09]} Be6 {[%emt 0:00:00]} 14. Nd5 {[%emt 0:02:51]} bxc4 {[%emt 0:00:00]} 15. dxc4 {[%emt 0:00:36]} Bxd5 {[%emt 0:00:00]} 16. cxd5 {[%emt 0:03:55]} Ne5 {[%emt 0:00:00]} 17. Qe2 {[%emt 0:02:54]} Qa5 {[%emt 0:00:00]} 18. Na3 {[%emt 0:03:34]} Nc8 {[%emt 0:00:00]} 19. Rfc1 {[%emt 0:50:05]} Nb6 {[%emt 0:00:00]} 20. Bf1 {[%emt 0:00:00]} Ra8 {[%emt 0:00:00]} 21. Qg2 {[%emt 0:00:00]} Nbd7 {[%emt 0:00:00]} 22. Bxe5 {[%emt 0:00:00]} Nxe5 {[%emt 0:00:00]} 23. Nc4 {[%emt 0:00:00]} Nxc4 {[%emt 0:00:00]} 24. Bxc4 {[%emt 0:00:00]} Rfb8 {[%emt 0:00:00]} 25. Qe2 {[%emt 0:00:00]} Qb6 {[%emt 0:00:00]} 26. b3 {[%emt 0:00:00]} Re8 {[%emt 0:00:00]} 27. Qf3 {[%emt 0:00:00]} Re7 {[%emt 0:00:00]} 28. Re1 {[%emt 0:00:00]} a5 {[%emt 0:00:00]} 29. a4 {[%emt 0:00:00]} Qb4 {[%emt 0:00:00]} 30. Re2 {[%emt 0:00:00]} Rae8 {[%emt 0:00:00]} 31. Rf1 {[%emt 0:00:00]} Qc3 {[%emt 0:00:00]} 32. Kg2 {[%emt 0:00:00]} Qe5 {[%emt 0:00:00]} 33. Bb5 {[%emt 0:00:00]} Rd8 {[%emt 0:00:00]} 34. Bc4 {[%emt 0:00:21]} Ra7 {[%emt 0:11:30]} 35. Bb5 {[%emt 0:01:37]} Qe7 {[%emt 0:00:00]} 36. Bc4 {[%emt 0:00:47]} Be5 {[%emt 0:00:00]} 37. Qd3 {[%emt 0:01:34]} Kg7 {[%emt 0:00:00]} 38. Qe3 {[%emt 0:01:22]} Qf8 {[%emt 0:00:00]} 39. Bb5 {[%emt 0:01:30]} Re7 {[%emt 0:00:00]} 40. Qd2 {[%emt 0:00:30]} Ra8 {[%emt 0:00:00]} 41. Bc4 {[%emt 0:00:24]} Raa7 {[%emt 0:00:00]} 42. Bb5 {[%emt 0:00:25]} Bd4 {[%emt 0:00:00]} 43. Bc4 {[%emt 0:01:20]} Re5 {[%emt 0:00:00]} 44. Rf4 {[%emt 0:01:01]} h6 {[%emt 0:00:00]} 45. Bb5 {[%emt 0:00:28]} Rh5 {[%emt 0:00:00]} 46. Re1 {[%emt 0:00:56]} Qc8 {[%emt 0:00:00]} 47. h4 {[%emt 0:00:18]} Qd8 {[%emt 0:00:00]} 48. Be2 {[%emt 0:00:23]} Re5 {[%emt 0:00:00]} 49. Bc4 {[%emt 0:00:36]} Rae7 {[%emt 0:00:00]} 50. Ref1 {[%emt 0:00:30]} Rxe4 {[%emt 0:00:00]} 51. Rxe4 {[%emt 0:00:51]} Rxe4 {[%emt 0:00:00]} 52. Bd3 {[%emt 0:00:52]} Be3 {[%emt 0:00:00]} 53. Qc3+ {[%emt 0:00:18]} Re5 {[%emt 0:00:00]} 54. Rf3 {[%emt 0:00:36]} Bd4 {[%emt 0:00:00]} 55. Qc2 {[%emt 0:00:06]} Qe7 {[%emt 0:00:00]} 56. Qd2 {[%emt 0:01:05]} Qc7 {[%emt 0:00:00]} 57. Qc2 {[%emt 0:00:25]} Qb6 {[%emt 0:00:00]} 58. Bc4 {[%emt 0:00:42]} Qb4 {[%emt 0:00:00]} 59. Rf1 {[%emt 0:00:16]} Re3 {[%emt 0:00:00]} 60. Qf2 {[%emt 0:00:25]} Qb7 {[%emt 0:00:00]} 61. Qd2 {[%emt 0:00:44]} Qe7 {[%emt 0:13:30]} 62. Rf4 {[%emt 0:00:33]} Re1 {[%emt 0:00:00]} 63. Bf1 {[%emt 0:00:32]} Rb1 {[%emt 0:00:00]} 64. Qd3 {[%emt 0:00:13]} Rb2+ {[%emt 0:00:00]} 65. Kh1 {[%emt 0:00:13]} Qe5 {[%emt 0:00:00]} 66. Bg2 {[%emt 0:00:33]} Qe3 {[%emt 0:00:00]} 67. Qd1 {[%emt 0:00:47]} Qxg3 {[%emt 0:00:00]} 68. Rg4 {[%emt 0:00:14]} Qe5 {[%emt 0:00:00]} 69. Re4 {[%emt 0:00:43]} Qxd5 {[%emt 0:00:00]} 70. Re2 {[%emt 0:00:12]} Qh5 {[%emt 0:00:00]} 0-1

[Event "3rd Matrix Cup 2024"]
[Site "New Delhi"]
[Date "2024.04.08"]
[Round "5.6"]
[White "Goutham Ramesh"]
[Black "Kumar, Gaurav"]
[Result "0-1"]
[ECO "D02"]
[WhiteElo "1776"]
[BlackElo "2083"]
[Annotator "RC"]
[PlyCount "112"]
[EventDate "2024.04.07"]
[EventType "swiss"]
[EventCountry "IND"]
[SourceTitle "playchess.com"]
[Source "ChessBase"]
[SourceQuality "1"]
[TimeControl "5400+30"]

1. Nf3 {[%emt 0:02:55]} d5 {[%emt 0:02:17]} 2. d4 {[%emt 0:00:07]} Nf6 {[%emt 0:00:22]} 3. Bf4 {[%emt 0:00:06]} c5 {[%emt 0:00:35]} 4. c3 {[%emt 0:00:07]} Qb6 {[%emt 0:01:37]} 5. Qb3 {[%emt 0:01:35]} Nc6 {[%emt 0:00:42]} 6. e3 {[%emt 0:00:17]} c4 {[%emt 0:02:05]} 7. Qxb6 {[%emt 0:01:07]} axb6 {[%emt 0:00:03]} 8. Na3 {[%emt 0:01:37]} Bf5 {[%emt 0:10:40]} 9. Nb5 {[%emt 0:01:50]} Ra5 {[%emt 0:05:08]} 10. a4 {[%emt 0:00:49]} Bc2 {[%emt 0:00:48]} 11. Ne5 {[%emt 0:02:08]} Nxe5 {[%emt 0:08:57]} 12. dxe5 {[%emt 0:04:32]} Ne4 {[%emt 0:01:40]} 13. Be2 {[%emt 0:06:24]} e6 {[%emt 0:01:15]} 14. f3 {[%emt 0:02:52]} Nc5 {[%emt 0:00:53]} 15. Kd2 {[%emt 0:01:04]} Bxa4 {[%emt 0:02:11]} 16. Nd4 {[%emt 0:00:07]} Nb3+ {[%emt 0:02:16]} 17. Nxb3 {[%emt 0:00:21]} Bxb3 {[%emt 0:00:07]} 18. e4 {[%emt 0:01:19]} dxe4 {[%emt 0:04:12]} 19. Be3 {[%emt 0:01:50]} Rd5+ {[%emt 0:06:54]} 20. Ke1 {[%emt 0:00:20]} Bc5 {[%emt 0:01:30]} 21. Bxc5 {[%emt 0:03:35]} bxc5 {[%emt 0:02:32]} 22. Ra8+ {[%emt 0:00:58]} Rd8 {[%emt 0:01:44]} 23. Rxd8+ {[%emt 0:00:07]} Kxd8 {[%emt 0:00:04]} 24. fxe4 {[%emt 0:00:06]} Ke7 {[%emt 0:00:37]} 25. Kd2 {[%emt 0:01:27]} Rd8+ {[%emt 0:08:27]} 26. Ke3 {[%emt 0:00:21]} Ra8 {[%emt 0:00:12]} 27. Rb1 {[%emt 0:01:19]} Ra2 {[%emt 0:00:20]} 28. g3 {[%emt 0:00:38]} b5 {[%emt 0:00:27]} 29. Kd2 {[%emt 0:00:32]} f6 {[%emt 0:09:13]} 30. h3 {[%emt 0:00:23]} fxe5 {[%emt 0:02:25]} 31. h4 {[%emt 0:01:04]} b4 {[%emt 0:02:50]} 32. Bf1 {[%emt 0:01:41]} Ra8 {[%emt 0:01:08]} 33. Rc1 {[%emt 0:00:35]} bxc3+ {[%emt 0:04:11]} 34. Kxc3 {[%emt 0:07:51]} Rf8 {[%emt 0:01:12]} 35. Be2 {[%emt 0:00:46]} Rf2 {[%emt 0:01:56]} 36. Kd2 {[%emt 0:00:06]} Rg2 {[%emt 0:02:35]} 37. Rc3 {[%emt 0:00:27]} Rg1 {[%emt 0:05:06]} 38. Bxc4 {[%emt 0:05:42]} Bxc4 {[%emt 0:00:08]} 39. Rxc4 {[%emt 0:00:05]} Rg2+ {[%emt 0:00:40]} 40. Kd1 {[%emt 0:02:42]} Kd6 {[%emt 0:05:38]} 41. b4 {[%emt 0:00:07]} cxb4 {[%emt 0:00:16]} 42. Rxb4 {[%emt 0:00:06]} Rxg3 {[%emt 0:00:03]} 43. Ke2 {[%emt 0:00:23]} Ke7 {[%emt 0:00:55]} 44. Rb7+ {[%emt 0:00:55]} Kf6 {[%emt 0:00:09]} 45. h5 {[%emt 0:00:14]} Rh3 {[%emt 0:00:05]} 46. Rb8 {[%emt 0:00:11]} Rxh5 {[%emt 0:00:13]} 47. Rf8+ {[%emt 0:00:06]} Ke7 {[%emt 0:00:30]} 48. Rg8 {[%emt 0:00:05]} Kf7 {[%emt 0:00:08]} 49. Rh8 {[%emt 0:00:05]} h6 {[%emt 0:01:59]} 50. Kf3 {[%emt 0:00:16]} Rh3+ {[%emt 0:00:08]} 51. Kf2 {[%emt 0:00:06]} Rh4 {[%emt 0:00:15]} 52. Kf3 {[%emt 0:00:06]} Rf4+ {[%emt 0:00:07]} 53. Ke3 {[%emt 0:00:06]} Kg6 {[%emt 0:00:31]} 54. Re8 {[%emt 0:00:21]} Rf6 {[%emt 0:00:15]} 55. Rh8 {[%emt 0:00:06]} h5 {[%emt 0:00:06]} 56. Re8 {[%emt 0:00:07]} h4 {[%emt 0:00:23]} 0-1